Cogmind - Beta 13 @@@ ROGUE MODE // 2024.04.03 @ 14:55:07 Player: JetmanJay Result: Destroyed by H-55 Commando with Assault Rifle Performance ------------- Evolutions (2) 1000 Regions Visited (7) 1400 Robots Destroyed (46) 230 Value Destroyed (1694) 1694 Prototype IDs (1) 20 Alien Tech Used (0) 0 Bonus (534) 534 TOTAL SCORE: 4878 Bonus ------- High Alert Combat Kills 234 Aligned with FarCom 300 Cogmind --------- Core Integrity 0/550 Matter 224/300 Energy 373/500 System Corruption 0% Temperature Cool (0) Movement Core (400) Ox7 Location -8/Storage Parts ------- > --- POWER (2) -------- (None) > --- PROPULSION (2) --- (None) > --- UTILITY (5) ------ Medium Storage Unit Large Battery Large Battery Signal Interpreter > --- WEAPON (2) ------- Light Cannon Improved Light Cannon > --- INVENTORY (10) --- Wheel EM Pulse Gun EM Shotgun Particle Gun Light Assault Rifle Peak State ------------ > --- POWER ------------ Light Deuterium Engine Nuclear Core > --- PROPULSION ------- Compact Wheel Compact Wheel > --- UTILITY ---------- Improved Heat Sink Improved Heat Sink Medium Storage Unit Large Battery Signal Interpreter > --- WEAPON ----------- Firepult > --- INVENTORY -------- Wheel Large Battery EM Pulse Gun EM Shotgun EM Shotgun Particle Gun Light Assault Rifle Light Cannon Improved Light Cannon [Rating: 38] Favorites ----------- Power Light Ion Engine Engine Light Ion Engine Power Core Nuclear Core Propulsion Compact Wheel Wheel Compact Wheel Utility Large Battery Device Improved Heat Sink Storage Large Battery Processor Signal Interpreter Weapon Medium Laser Energy Gun Medium Laser Energy Cannon Firepult Ballistic Gun Light Assault Rifle Ballistic Cannon Light Cannon Build | -11 -10 -9 -9 -9 -8 -8 -8 ------- Run | Yrd Mat Mat Min Exi Min Mat Sto Slots Evolved 4 | . . 2 . . . 2 . Power 1 | . . . . . . 1 . Propulsion . | . . . . . . . . Utility 3 | . . 2 . . . 1 . Weapon . | . . . . . . . . Parts Attached 35 | 6 6 2 . 1 2 8 10 Power 5 | 1 1 . . . 1 2 . Engine 4 | 1 1 . . . . 2 . Core 1 | . . . . . 1 . . Reactor . | . . . . . . . . Propulsion 9 | 2 1 . . . . 3 3 Treads . | . . . . . . . . Leg . | . . . . . . . . Wheel 9 | 2 1 . . . . 3 3 Hover . | . . . . . . . . Flight . | . . . . . . . . Utility 11 | 1 2 2 . . 1 3 2 Device 5 | . . . . . 1 3 1 Storage 5 | 1 1 2 . . . . 1 Processor 1 | . 1 . . . . . . Hackware . | . . . . . . . . Protection . | . . . . . . . . Artifact . | . . . . . . . . Weapon 10 | 2 2 . . 1 . . 5 Energy Gun 6 | 1 2 . . . . . 3 Energy Cannon 1 | . . . . 1 . . . Ballistic Gun 1 | 1 . . . . . . . Ballistic Cannon 2 | . . . . . . . 2 Launcher . | . . . . . . . . Special Weapon . | . . . . . . . . Impact Weapon . | . . . . . . . . Slashing Weapon . | . . . . . . . . Piercing Weapon . | . . . . . . . . Special Melee Weapon . | . . . . . . . . Unidentified Prototypes 1 | . . . . 1 . . . Parts Lost 16 | . 1 1 . . . 6 8 Power 5 | . 1 1 . . . 2 1 Propulsion 5 | . . . . . . 2 3 Utility 4 | . . . . . . 2 2 Weapon 2 | . . . . . . . 2 Highest Loss Streak 6 | . 1 1 . . . 3 6 To Critical Strikes . | . . . . . . . . Average Slot Usage (%) 87 | . 97 92 88 85 87 85 70 Engine 4 | . 13 6 . . . 8 5 Core 3 | . . . . . 10 8 . Wheel 21 | . 28 22 22 22 22 16 15 Device 4 | . . . . . . 16 11 Storage 25 | . 14 30 33 33 32 18 18 Processor 10 | . 11 11 11 11 11 9 9 Energy Gun 12 | . 23 22 22 17 . . 2 Energy Cannon 4 | . . . . 2 11 9 5 Naked Turns . | . . . . . . . . Heaviest Build 49 | 10 17 23 20 38 45 49 40 Greatest Support 32 | 26 32 32 32 32 32 32 20 Greatest Overweight (x) 4 | . . . . 1 1 4 3 Average Overweight (x) . | . . . . . 1 1 1 Largest Inventory Capacity 10 | 8 10 10 10 10 10 10 10 Average Capacity 9 | 6 8 10 10 10 10 10 10 Most Carried 10 | 4 7 10 8 10 9 10 10 Average Carried 7 | 2 4 8 8 8 8 9 8 Final Capacity 10 | 8 10 10 10 10 10 10 10 Final Carried 9 | 4 6 8 8 8 9 9 5 Class Distribution -------------------- 92% | Mutant 7% | Scavenger-Mutant Dominant Class ---------------- Mutant | -10/Materials Mutant | -9/Materials Mutant | -9/Mines Mutant | -9/Exiles Mutant | -8/Mines Mutant | -8/Materials Mutant | -8/Storage Resources | -11 -10 -9 -9 -9 -8 -8 -8 ----------- Run | Yrd Mat Mat Min Exi Min Mat Sto Matter Collected 540 | 249 91 15 . . 30 115 40 Remotely . | . . . . . . . . Salvage Created 1760 | . 189 91 . . 166 1047 267 Parts 67 | . 14 2 . . 5 41 5 Haulers Intercepted . | . . . . . . . . Recyclers Shooed . | . . . . . . . . Parts Field Recycled . | . . . . . . . . Retrieved Matter . | . . . . . . . . Parts Self-Destructed . | . . . . . . . . Prevented . | . . . . . . . . Kills | -11 -10 -9 -9 -9 -8 -8 -8 ------- Run | Yrd Mat Mat Min Exi Min Mat Sto Combat Hostiles Destroyed 36 | . 4 2 . . 3 22 5 Guns 7 | . 4 2 . . . . 1 Cannons 1 | . . . . . . 1 . AOE 18 | . . . . . 2 13 3 Classes Destroyed 9 | . 3 1 . . 1 4 . Worker 1 | . 1 . . . . . . Builder 4 | . . . . . . 4 . Tunneler 1 | . . . . . 1 . . Mechanic 1 | . . . . . . 1 . Watcher 3 | . 1 . . . . 2 . Swarmer 7 | . . . . . . 7 . Grunt 22 | . 4 1 . . 2 12 3 Duelist 2 | . . 1 . . 1 . . Sentry 5 | . . . . . . 3 2 Best Kill Streak 13 | . 2 2 . . 4 13 5 Combat Bots Only 10 | . 2 2 . . 3 10 5 Max Kills in Single Turn 3 | . 1 1 . . 3 3 1 Gunslinging . | . . . . . . . . Exploded 2 | . . . . . 1 2 1 Melee . | . . . . . . . . Uniques/NPCs Destroyed . | . . . . . . . . Combat | -11 -10 -9 -9 -9 -8 -8 -8 -------- Run | Yrd Mat Mat Min Exi Min Mat Sto Hostile Shots Fired 114 | . 26 14 . . . 39 35 Missed 27 | . 8 2 . . . 9 8 Damage Taken 1850 | . 230 196 . . 39 569 816 Core 687 | . 42 74 . . 10 166 395 Absorbed by Shields . | . . . . . . . . Core Remaining (%) 87 | 100 83 . . . 79 . . Volleys Fired 92 | 1 29 10 3 . 3 27 19 Largest 2 | 2 2 2 2 . 1 1 2 Hottest 250 | 60 100 100 100 . 250 250 250 Shots Fired 144 | 2 58 20 6 . 3 27 28 Gun 94 | 2 58 20 6 . . . 8 Cannon 50 | . . . . . 3 27 20 Launcher . | . . . . . . . . Special . | . . . . . . . . Kinetic 34 | 1 19 . . . . . 14 Thermal 102 | 1 39 20 6 . 3 27 6 Explosive . | . . . . . . . . Electromagnetic 8 | . . . . . . . 8 Robot Hit Streak 13 | 2 13 3 . . 1 6 6 Robot Miss Streak 7 | . 7 1 . . 6 7 4 Penetration Max . | . . . . . . . . Secondary Targets 2 | . 2 . . . . . . Max Gunslinging Chain 1 | . 1 . . . . . . Shots Hit Robots 90 | 2 32 13 . . 1 26 16 Core Hits 79 | 1 14 5 . . 8 37 14 Critical Kills . | . . . . . . . . Critical Parts Destroyed . | . . . . . . . . Critical Strikes 2 | . . 2 . . . . . Burn 2 | . . 2 . . . . . Melee Attacks . | . . . . . . . . Impact . | . . . . . . . . Slashing . | . . . . . . . . Piercing . | . . . . . . . . Sneak Attacks . | . . . . . . . . Combat Hostiles . | . . . . . . . . Follow-up Attacks . | . . . . . . . . Damage Inflicted 3076 | 17 325 186 . . 263 1680 605 Guns 604 | 17 325 186 . . . . 76 Cannons 586 | . . . . . 75 352 159 Explosions 1886 | . . . . . 188 1328 370 Melee . | . . . . . . . . Ramming . | . . . . . . . . Kinetic 180 | 6 85 . . . . . 89 Thermal 2747 | 11 240 186 . . 263 1634 413 Explosive 73 | . . . . . . 46 27 Electromagnetic 76 | . . . . . . . 76 Impact . | . . . . . . . . Slashing . | . . . . . . . . Piercing . | . . . . . . . . Highest Corruption . | . . . . . . . . Average Corruption . | . . . . . . . . Corruption Purged . | . . . . . . . . Corruption Blocked . | . . . . . . . . Overload Shots . | . . . . . . . . Overflow Damage 42 | . . . . . 2 16 24 Projectiles 8 | . . . . . . 8 . Explosions 34 | . . . . . 2 8 24 Melee . | . . . . . . . . Knockbacks . | . . . . . . . . Impact . | . . . . . . . . Kinetic . | . . . . . . . . Secondary . | . . . . . . . . Self-Inflicted Damage 215 | . . . . . 39 81 95 Shots 20 | . . . . . 5 9 6 Rammed . | . . . . . . . . Targets Rammed . | . . . . . . . . Kicked . | . . . . . . . . Crushed . | . . . . . . . . Highest Temperature 648 | 20 176 209 15 . 476 648 639 Average Temperature 182 | 15 61 99 10 . 202 246 309 Received Heat Transfer 513 | . 126 54 . . . 216 117 Effects 31 | . . . . . 1 21 9 Shutdowns 7 | . . . . . 1 6 . Energy Bleed 2 | . . . . . . 2 . Interference 7 | . . . . . . 4 3 Matter Decay 1 | . . . . . . 1 . Short Circuit 3 | . . . . . . 2 1 Damage (minor) 2 | . . . . . . . 2 Damage (major) 5 | . . . . . . 5 . Damage (core) 4 | . . . . . . 1 3 Siege Activations . | . . . . . . . . Robots Corrupted . | . . . . . . . . Combat Hostiles . | . . . . . . . . Parts Fried . | . . . . . . . . Impact Corruptions . | . . . . . . . . Robots Melted 11 | . . . . . 1 9 1 Combat Hostiles 10 | . . . . . 1 8 1 Parts Melted 52 | . . 2 . . 7 37 6 Heat Transferred 13079 | 25 621 703 . . 1520 8560 1650 Parts Sabotaged . | . . . . . . . . Parts Stolen . | . . . . . . . . Parts Stripped . | . . . . . . . . Power Chain Reactions 1 | . . . . . . . 1 Alert | -11 -10 -9 -9 -9 -8 -8 -8 ------- Run | Yrd Mat Mat Min Exi Min Mat Sto Peak Influence 1025 | . 203 125 48 . 130 1025 623 Initial 424 | . . 85 48 . . 50 424 Average 192 | . 125 97 48 . 18 359 516 Maximum Alert Level 3 | . 1 . . . . 3 2 Low Security (%) 71 | 100 95 100 100 . 100 33 . Level 1 5 | . 4 . . . . 21 . Level 2 20 | . . . . . . 34 100 Level 3 2 | . . . . . . 11 . Level 4 . | . . . . . . . . Level 5 . | . . . . . . . . High Security . | . . . . . . . . Max Security . | . . . . . . . . Squads Dispatched 9 | . 4 1 . . . 4 . Investigation 4 | . 2 1 . . . 1 . Extermination . | . . . . . . . . Reinforcement 4 | . 2 . . . . 2 . Assault 1 | . . . . . . 1 . Garrison . | . . . . . . . . Intercept . | . . . . . . . . Searches Triggered . | . . . . . . . . Construction Impeded 2 | . . . . . . 2 . Haulers Reinforced . | . . . . . . . . Active Scanning Responses . | . . . . . . . . Cargo Convoy Interrupts . | . . . . . . . . Stealth | -11 -10 -9 -9 -9 -8 -8 -8 --------- Run | Yrd Mat Mat Min Exi Min Mat Sto Distress Signals 4 | . . . . . . 4 . Communications Jammed . | . . . . . . . . Distress Signals . | . . . . . . . . Times Spotted 55 | . 10 3 . . 3 33 6 Peak Tracking Total 8 | . 3 3 . . 3 8 3 Tactical Retreats 2 | . 1 . . . . 1 . Traps | -11 -10 -9 -9 -9 -8 -8 -8 ------- Run | Yrd Mat Mat Min Exi Min Mat Sto Traps Triggered 3 | . 1 1 . . . 1 . Indirectly . | . . . . . . . . Trap Hack Attempts . | . . . . . . . . Triggered . | . . . . . . . . Disarmed . | . . . . . . . . Reprogrammed . | . . . . . . . . Reused . | . . . . . . . . Traps Extracted . | . . . . . . . . Installed . | . . . . . . . . Triggered . | . . . . . . . . Machines | -11 -10 -9 -9 -9 -8 -8 -8 ---------- Run | Yrd Mat Mat Min Exi Min Mat Sto Machines Disabled 12 | . . . . . 2 8 2 Max in Single Turn 2 | . . . . . 1 2 1 Garrison Access 1 | . . . . . . 1 . Machines Repaired . | . . . . . . . . Machines Dismantled . | . . . . . . . . Machines Sabotaged . | . . . . . . . . Overloaded Fab Kills . | . . . . . . . . Hacking | -11 -10 -9 -9 -9 -8 -8 -8 --------- Run | Yrd Mat Mat Min Exi Min Mat Sto Machines Accessed 5 | . 2 . . 3 . . . Terminals 2 | . 2 . . . . . . Fabricators . | . . . . . . . . Repair Stations . | . . . . . . . . Recycling Units . | . . . . . . . . Scanalyzers . | . . . . . . . . Garrison Access . | . . . . . . . . Total Hacks 29 | . 4 . . 25 . . . Successful 27 | . 2 . . 25 . . . Failed 2 | . 2 . . . . . . Catastrophic . | . . . . . . . . Database Lockouts . | . . . . . . . . Manual 1 | . . . . 1 . . . Terminals 4 | . 4 . . . . . . Fabricators . | . . . . . . . . Repair Stations . | . . . . . . . . Recycling Units . | . . . . . . . . Scanalyzers . | . . . . . . . . Garrison Access . | . . . . . . . . Terminal Hacks 27 | . 2 . . 25 . . . Record 25 | . . . . 25 . . . Hauler Manifests 1 | . 1 . . . . . . Zone Layout 1 | . 1 . . . . . . Fabricator Hacks . | . . . . . . . . Repair Station Hacks . | . . . . . . . . Recycling Unit Hacks . | . . . . . . . . Scanalyzer . | . . . . . . . . Garrison Access Hacks . | . . . . . . . . Unauthorized Hacks . | . . . . . . . . Terminals . | . . . . . . . . Fabricators . | . . . . . . . . Repair Stations . | . . . . . . . . Recycling Units . | . . . . . . . . Scanalyzers . | . . . . . . . . Garrison Access . | . . . . . . . . Data Cores Recovered . | . . . . . . . . Used . | . . . . . . . . Hacking Detections 1 | . 1 . . . . . . Full Trace Events 1 | . 1 . . . . . . Feedback Events . | . . . . . . . . Feedback Blocked . | . . . . . . . . Robot Schematics Acquired . | . . . . . . . . Robots Built . | . . . . . . . . Authchips . | . . . . . . . . Time . | . . . . . . . . Total Robot Build Rating . | . . . . . . . . Part Schematics Acquired . | . . . . . . . . Parts Built . | . . . . . . . . Authchips . | . . . . . . . . Time . | . . . . . . . . Total Part Build Rating . | . . . . . . . . Parts Repaired . | . . . . . . . . Time . | . . . . . . . . Parts Recycled . | . . . . . . . . Recycled Matter . | . . . . . . . . Retrieved Matter . | . . . . . . . . Retrieved Components . | . . . . . . . . Parts Scanalyzed . | . . . . . . . . Part Schematics Acquired . | . . . . . . . . Parts Damaged . | . . . . . . . . Bothacking | -11 -10 -9 -9 -9 -8 -8 -8 ------------ Run | Yrd Mat Mat Min Exi Min Mat Sto Used RIF Installer . | . . . . . . . . Robots Hacked . | . . . . . . . . Non-combat . | . . . . . . . . Combat . | . . . . . . . . Robot Hacks Applied . | . . . . . . . . Relay Couplers Released 1 | . . . . . . 1 . Machine Destruction 1 | . . . . . . 1 . Fabnet Peak Effective % . | . . . . . . . . Robots Rewired . | . . . . . . . . Allies Hacked . | . . . . . . . . Hacks Repelled . | . . . . . . . . Allies | -11 -10 -9 -9 -9 -8 -8 -8 -------- Run | Yrd Mat Mat Min Exi Min Mat Sto Total Allies 2 | . . . 2 . . . . Largest Group 2 | . . . 2 2 . . . Highest-Rated Group 45 | . . . 45 45 . . . Highest-Rated Ally 31 | . . . 31 31 . . . Total Orders . | . . . . . . . . Ally Attacks . | . . . . . . . . Total Damage . | . . . . . . . . Kills . | . . . . . . . . Allies Corrupted . | . . . . . . . . Allies Melted . | . . . . . . . . Intel | -11 -10 -9 -9 -9 -8 -8 -8 ------- Run | Yrd Mat Mat Min Exi Min Mat Sto Robot Analysis Total . | . . . . . . . . Derelict Logs Recovered 1 | . . . 1 . . . . Drone Launches . | . . . . . . . . Drone Recoveries . | . . . . . . . . Exploration | -11 -10 -9 -9 -9 -8 -8 -8 ------------- Run | Yrd Mat Mat Min Exi Min Mat Sto Turns Passed 2216 | 56 362 174 158 562 322 368 214 Spaces Moved 1763 | 44 291 106 150 545 256 225 146 Core 4 | 4 . . . . . . . Treads . | . . . . . . . . Legs . | . . . . . . . . Wheels 1759 | 40 291 106 150 545 256 225 146 Hover . | . . . . . . . . Flight . | . . . . . . . . Fastest Speed 50 | 50 90 100 100 100 115 110 80 Average Speed 103 | 86 91 100 100 102 115 117 97 Slowest Speed 145 | 90 100 100 100 115 115 145 125 Overloaded Moves . | . . . . . . . . Propulsion Burnouts . | . . . . . . . . Robots Hopped . | . . . . . . . . Cave-ins Triggered . | . . . . . . . . Exploration Rate (%) 35 | 3 43 15 31 91 47 31 22 Regions Visited 7 Branch Regions 4 Pre-discovered Areas 1 | . . . . 1 . . . Known Exits Taken 6 | . 1 1 1 1 1 1 . Unknown Exits Taken 1 | 1 . . . . . . . Scrap Searched 1 | . . . . . 1 . . Spaces Dug . | . . . . . . . . Terrain Destroyed 247 | . . . . . 26 165 56 Melee . | . . . . . . . . Projectile 10 | . . . . . 1 8 1 AOE 237 | . . . . . 25 157 55 Terrain Rammed . | . . . . . . . . Walls Destroyed . | . . . . . . . . Machines Disabled . | . . . . . . . . Actions | -11 -10 -9 -9 -9 -8 -8 -8 --------- Run | Yrd Mat Mat Min Exi Min Mat Sto Total 2018 | 60 333 155 152 548 280 303 187 Wait 90 | . . 26 . . 18 36 10 Move 1756 | 43 290 105 149 544 255 224 146 Hop . | . . . . . . . . Pick Up 33 | 10 5 8 . 1 2 5 2 Fast Attach 3 | . . . . . . 2 1 Attach 24 | 6 4 2 . 1 1 4 6 Detach 2 | . 2 . . . . . . Swap 8 | . 2 . . . 1 2 3 Drop 10 | . 1 4 . 2 . 3 . Fire 92 | 1 29 10 3 . 3 27 19 Melee . | . . . . . . . . Ram . | . . . . . . . . Kick . | . . . . . . . . Crush . | . . . . . . . . Escape Stasis . | . . . . . . . . Rewire . | . . . . . . . . Trap . | . . . . . . . . Miscellaneous . | . . . . . . . . Route ------- -11/Scrapyard -10/Materials -9/Materials -9/Mines -9/Exiles (discovered 2 exits: *Min x2) -8/Mines (discovered 2 exits: *Mat x2) -8/Materials -8/Storage History --------- Turn | Location | Event 10 | -11/Scrapyard | Discovered new exit (range 16) 57 | -11/Scrapyard | Entered Materials 129 | -10/Materials | Discovered new exit (range 15) 307 | -10/Materials | Build established: Mutant 418 | -10/Materials | Identified exit to Materials 419 | -10/Materials | Entered another Materials area 419 | -9/Materials | Evolved 2 slots: Utility x2 581 | -9/Materials | Discovered new exit (range 12) 592 | -9/Materials | Identified exit to Mines 593 | -9/Materials | Entered Mines 610 | -9/Mines | Learned Materials security intel 743 | -9/Mines | Deemed a non-threat by the Exiles lab entrance 744 | -9/Mines | Discovered new exit (range 5) 750 | -9/Mines | Identified exit to Exiles 751 | -9/Mines | Entered Exiles 751 | -9/Exiles | Accompanied by 2 allies 765 | -9/Exiles | Discovered new exit (range 15) 781 | -9/Exiles | Led the pair of lost Derelicts to a safe place 795 | -9/Exiles | Met 8R-AWN 817 | -9/Exiles | Met EX-HEX 856 | -9/Exiles | Met EX-DEC 899 | -9/Exiles | Visited The Gauntlet 1023 | -9/Exiles | Learned location of Zion (-7) 1070 | -9/Exiles | Discovered new exit (range 10) 1146 | -9/Exiles | Met EX-BIN 1157 | -9/Exiles | Aligned with FarCom system 1158 | -9/Exiles | Given EX-Vault access code 1195 | -9/Exiles | Opened EX-Vault 1200 | -9/Exiles | Found Prototype Energy Cannon 1203 | -9/Exiles | Identified Firepult 1226 | -9/Exiles | Warned to stay clear of 0b10 Research branches 1312 | -9/Exiles | Identified exit to Mines 1313 | -9/Exiles | Left Exiles lab with Firepult 1313 | -9/Exiles | Entered Mines 1435 | -8/Mines | Discovered new exit (range 9) 1533 | -8/Mines | Identified exit to Materials 1627 | -8/Mines | Discovered exit to Materials (range 8) 1635 | -8/Mines | Entered Materials 1635 | -8/Materials | Evolved 2 slots: Power x1, Utility x1 1973 | -8/Materials | Discovered new exit (range 15) 2002 | -8/Materials | Identified exit to Storage 2003 | -8/Materials | Entered Storage 2012 | -8/Storage | Destroyed 10 combat bots 2028 | -8/Storage | Lost 3 parts (1p1n1u) 2143 | -8/Storage | Core integrity fell below 50% 2145 | -8/Storage | Core integrity fell below 20% 2186 | -8/Storage | Lost 6 parts (1p1n2u2w) 2217 | -8/Storage | Destroyed by H-55 Commando with Assault Rifle Last Messages --------------- Overheating: Lrg. Battery damaged (-19). G-50 Soldier destroyed. Overheating: System interference. EM Pulse Gun temporarily disabled. U-05 Engineer builds a Wall. Acquired 30 matter. U-05 Engineer lays Concrete. U-05 Engineer builds a Wall. Acquired 10 matter. R-06 Scavenger collects Aluminum Leg. U-05 Engineer builds a Wall. R-06 Scavenger collects Carbon-fiber Leg. U-05 Engineer builds a Wall. R-06 Scavenger collects Corrupted Adv. Heat Sink. Slug penetrates Wall. Penetrated by Slug. Wheel destroyed. Penetrated by Slug. Slug penetrates Wall. Map ----- +----------------------------------------------------+ | ??????????????????????????????????? | | ??????????????????????????????????? | | ??????????????????????????????????? | | ??????????????????????????????????? | | ??????????????????????????????????? | | ??????????????????????????????????? | | ??????????????????????????????????? | | ??????????????????????????????????? | | ????????Y?????????????????????????? | | ??????????????????????????????????? | | ??????????????????????????????????? | | ??????????????????????????????????? | | ??????????????????????????????????? | | ????????????????? ??????##+?####### | | ????????????????? #?????? # | | ????????????????? ????? # """ " | | ????????????????# ????? + """ " | | ????????????????# #????? ?# """ " | | ?????????###+##?# #?????# ?# | | ?????????# ### #?????# #?? | | ????###### #?????# #???#+#? | | ????#"""## T ??????# #???# #? | | ????#"R"## w#?# #?????## ##### #? | | #####" "### #### ######## # # # #? | | # # # % #%# #? | | # @ % # # ## | | # # # hm #% % | | # # # # %""## | | # """ """ " # "#? | | # """ """ " ##? | | # """ """ " # % #?? | | ?########## ### | | ??????????# ###### ## # + | | ??????????# T#???######## ### | | ??????????# ##??????????########?? | | ??????????""""????????????????????? | | ??????????????????????????????????? | | ??????????????????????????????????? | | ??????????????????????????????????? | | ??????????????????????????????????? | | ??????????????????????????????????? | | ??????????????????????????????????? | | | | | | | | | | | | | | | | | +----------------------------------------------------+ Best States ------------- Heat Dissipation 59 Coolant Potential 50 Energy Generation 23 Energy Capacity 640 Matter Stores 300 Matter Capacity 300 Sight Range 16 Terrain Scan Density 10 Evasion (%) 44 Item Schematics ----------------- None Robot Schematics ------------------ None Fabricated ------------ Nothing Alien Tech Used ----------------- None Achievements -------------- Librarian Remodeling Tourist Challenges ------------ None Game ------ Seed SniperSurgeMount Manual? 0 Play Time 00:29:45 Cumulative 2.9 hours Start 2024.04.03 @ 14:24:57 End 2024.04.03 @ 14:55:07 Sessions 1 Manual Loads 0 Difficulty Rogue Special Mode None Game No. 5 Rogue 5 Adventurer 0 Explorer 0 Win Type - Total 0 Types 0/0/0/0/0/0/0/0/0 Lore% 6 Gallery% 8 Achievement% 10 Wizard Run 0 Options --------- Layout 1 ASCII 0 Keyboard 0 Movement Mouse Keybinds 0 Fullscreen 1 Font 24/Smallcaps Map View 50x35 Zoom Use 0% Tactical HUD 0 Map Filters NONE Filters NONE Steam 1 RUN: f1efaa2c-81ea-43c5-bb69-b6d4ef604c80